bitfinex-derivatives/quotes_BTCF0:USTF0_20250406
["timestamp","ask_amount","ask_price","bid_price","bid_amount"]
[1743942235958,0.16166322,82901.0,82900.0,1.5871188]
[1743942237863,0.27166322,82901.0,82900.0,1.50264]
[1743942238064,0.27166322,82901.0,82900.0,1.5871196]
[1743942241172,0.27058322,82901.0,82900.0,1.5871196]
[1743942244070,0.27058322,82901.0,82900.0,0.00264]
[1743942244271,0.0844836,82896.0,82895.0,0.00917296]
[1743942244473,0.1267295,82895.0,82894.0,0.084485]
[1743942244774,0.4384295,82895.0,82894.0,0.084485]
[1743942245570,0.4384295,82895.0,82894.0,0.086485]
[1743942246672,0.4384295,82895.0,82894.0,0.09549245]
[1743942247875,0.4384295,82895.0,82894.0,0.09749245]
[1743942248076,0.43966951,82895.0,82894.0,0.09749245]
[1743942255276,0.43966951,82895.0,82894.0,0.12769245]
[1743942256180,0.31294001,82895.0,82894.0,0.12769245]
[1743942256382,0.01210462,82901.0,82900.0,0.0844796]
[1743942256576,0.08124001,82901.0,82900.0,0.4452796]
[1743942256778,8e-05,82902.0,82901.0,0.0844786]
[1743942257077,0.114874,82906.0,82902.0,0.0844775]
[1743942257277,0.114874,82906.0,82902.0,0.1468775]
[1743942257983,0.2289089,82905.0,82902.0,0.1468775]
[1743942258181,0.2289089,82905.0,82902.0,1.6468775]
[1743942259180,0.0844755,82904.0,82902.0,1.6468775]
[1743942259385,0.01227447,82903.0,82902.0,1.6468775]
[1743942259575,0.09675097,82903.0,82902.0,1.6468775]
[1743942260979,0.09675097,82903.0,82902.0,1.6163775]
[1743942263281,0.19675097,82903.0,82902.0,1.6163775]
[1743942263987,0.09675097,82903.0,82902.0,1.6163775]
[1743942265493,0.09675097,82903.0,82902.0,1.5844775]
[1743942265682,0.36675097,82903.0,82902.0,1.5844775]
[1743942265877,0.36675097,82903.0,82902.0,0.0844775]
[1743942266488,0.36799098,82903.0,82902.0,0.0844775]
[1743942266680,0.36675097,82903.0,82902.0,0.0844775]
[1743942266884,0.42985097,82903.0,82902.0,0.0844775]
[1743942270692,0.43121097,82903.0,82902.0,0.0844775]
[1743942280994,0.0844786,82901.0,82900.0,1.5]
[1743942281198,0.3544786,82901.0,82900.0,1.5844796]
[1743942281403,0.41801861,82901.0,82900.0,1.5844796]
[1743942282202,0.41801861,82901.0,82900.0,1.5854796]
[1743942282503,0.41801861,82901.0,82900.0,1.5864796]
[1743942290422,0.00124001,82901.0,82900.0,1.6171796]
[1743942290727,0.1444338,82902.0,82901.0,0.0844786]
[1743942290915,0.1444338,82902.0,82901.0,0.4452786]
[1743942291109,0.1444338,82902.0,82901.0,0.6567786]
[1743942291304,0.1444338,82902.0,82901.0,0.7145535]
[1743942291510,0.00018098,82903.0,82902.0,0.0844775]
[1743942291813,0.00018098,82903.0,82902.0,0.1422524]
[1743942292015,0.00018098,82903.0,82902.0,0.3537524]
[1743942292210,8e-05,82908.0,82907.0,0.0844724]
[1743942292520,8e-05,82908.0,82907.0,0.4452724]
[1743942292723,8e-05,82908.0,82907.0,0.5952724]
[1743942293114,8e-05,82908.0,82907.0,0.6568724]
[1743942293923,0.00108,82908.0,82907.0,0.6568724]
[1743942294116,0.00108,82908.0,82907.0,0.5068724]
[1743942294616,0.00108,82908.0,82907.0,0.5583924]
[1743942295624,0.00208,82908.0,82907.0,0.5583924]
[1743942303231,0.00208,82908.0,82907.0,0.77389492]
[1743942306325,0.002,82908.0,82907.0,0.89451126]
[1743942306634,0.002,82908.0,82907.0,2.39451126]
[1743942307136,0.002,82908.0,82907.0,2.17900874]
[1743942308126,0.002,82908.0,82907.0,1.9759724]
[1743942308726,0.0864714,82908.0,82907.0,0.4452724]
[1743942308935,0.2864714,82908.0,82907.0,0.4452724]
[1743942309126,0.2864714,82908.0,82907.0,1.9452724]
[1743942310037,0.08771141,82908.0,82907.0,1.9452724]
[1743942311834,0.31771141,82908.0,82907.0,1.9452724]
[1743942312028,0.08771141,82908.0,82907.0,1.8608]
[1743942312236,0.1267142,82905.0,82904.0,0.084475]
[1743942312429,0.0422387,82903.0,82896.0,0.21550252]
[1743942312637,0.0844826,82897.0,82896.0,0.29998412]
[1743942312937,0.3644826,82897.0,82896.0,0.29998412]
[1743942313136,0.3644826,82897.0,82896.0,1.79998412]
[1743942313539,0.4276826,82897.0,82896.0,1.79998412]
[1743942313838,0.4276826,82897.0,82896.0,1.80198412]
[1743942314338,0.4276826,82897.0,82896.0,1.80398412]
[1743942315638,0.4276826,82897.0,82896.0,1.5884816]
[1743942321336,0.0632,82897.0,82896.0,1.5884816]
[1743942321743,0.10843149,82901.0,82900.0,0.0844796]
[1743942321931,0.10843149,82901.0,82900.0,0.4452796]
[1743942322443,0.10843149,82901.0,82900.0,1.9452796]
[1743942322633,0.10843149,82901.0,82900.0,1.9758796]
[1743942323033,0.10843149,82901.0,82900.0,1.9768796]
[1743942323641,8e-05,82904.0,82903.0,0.0844765]
[1743942323947,8e-05,82904.0,82903.0,0.4452765]
[1743942325448,0.10843149,82909.0,82908.0,0.0844714]
[1743942325839,0.1096715,82909.0,82908.0,0.0844714]
[1743942326546,0.1106715,82909.0,82908.0,0.0844714]
[1743942326747,0.1126715,82909.0,82908.0,0.0844714]
[1743942327838,0.00424001,82909.0,82908.0,0.0844714]
[1743942328039,0.003,82909.0,82908.0,0.0844714]
[1743942329851,0.00424001,82909.0,82908.0,0.0844714]
[1743942330041,0.00424001,82909.0,82908.0,0.1148714]
[1743942330242,0.003,82909.0,82908.0,0.1148714]
[1743942331944,0.003,82909.0,82908.0,0.26758629]
[1743942332351,0.003,82909.0,82908.0,1.76758629]
[1743942335055,0.003,82909.0,82908.0,2.48918629]
[1743942340647,1e-07,82909.0,82908.0,2.48918629]
[1743942341348,1e-07,82911.0,82910.0,0.0844694]
[1743942341649,3e-08,82916.0,82915.0,0.0844643]
[1743942341850,3e-08,82916.0,82915.0,0.4968243]
[1743942342149,3e-08,82916.0,82915.0,1.9968243]
[1743942342550,3e-08,82916.0,82915.0,2.17833628]
[1743942343458,0.00300003,82916.0,82915.0,2.17833628]
[1743942344054,0.00700003,82916.0,82915.0,2.17833628]
[1743942345366,0.00700003,82916.0,82915.0,2.12677628]
[1743942345577,0.00700003,82916.0,82915.0,2.17829628]
[1743942346769,3e-08,82916.0,82915.0,2.17829628]
[1743942348865,3e-08,82916.0,82915.0,2.14799628]
[1743942349064,3e-08,82916.0,82915.0,2.09647628]
[1743942349264,3e-08,82916.0,82915.0,2.06587628]
[1743942351175,3e-08,82916.0,82915.0,1.9452643]
[1743942353476,3e-08,82916.0,82915.0,1.5844643]
[1743942353672,3e-08,82916.0,82915.0,2.3060643]
[1743942354864,3e-08,82916.0,82915.0,1.9452643]
[1743942360191,3e-08,82916.0,82915.0,2.06586901]
[1743942360482,3e-08,82916.0,82915.0,1.9452643]
[1743942360687,0.08446333,82916.0,82915.0,1.9452643]
[1743942361187,0.46446333,82916.0,82915.0,1.8608]
[1743942361383,0.46446333,82916.0,82915.0,0.4452643]
[1743942361684,0.53026333,82916.0,82915.0,0.4452643]
[1743942362790,0.38150334,82916.0,82915.0,0.4452643]
[1743942363090,0.29704004,82916.0,82915.0,0.4452643]
[1743942363478,0.06704004,82916.0,82915.0,0.4452643]
[1743942363885,0.06704004,82916.0,82915.0,1.9452643]
[1743942364187,0.06580003,82916.0,82915.0,1.9452643]
[1743942367083,0.15026333,82916.0,82915.0,1.9452643]
[1743942368592,0.06580003,82916.0,82915.0,1.9452643]
[1743942368987,0.06580003,82916.0,82915.0,1.9760643]
[1743942369490,3e-08,82916.0,82915.0,1.9760643]
[1743942369989,3e-08,82916.0,82915.0,2.09666901]
[1743942370190,3e-08,82916.0,82915.0,2.16136901]
[1743942378394,3e-08,82916.0,82915.0,2.09666901]
[1743942378789,3e-08,82916.0,82915.0,2.12756901]
[1743942381793,3e-08,82916.0,82915.0,2.48836901]
[1743942391805,3e-08,82916.0,82915.0,2.45746901]
[1743942392001,3e-08,82916.0,82915.0,2.42666901]
[1743942392396,3e-08,82916.0,82915.0,2.3060643]
[1743942392899,0.08446333,82916.0,82915.0,2.3060643]
[1743942393102,0.32446333,82916.0,82915.0,1.5844643]
[1743942394703,0.17446333,82916.0,82915.0,1.5844643]
[1743942399608,0.23846333,82916.0,82915.0,1.5844643]
[1743942400405,0.15400003,82916.0,82915.0,1.5844643]
[1743942400596,0.06400003,82916.0,82915.0,1.5844643]
[1743942400800,0.06400003,82916.0,82915.0,1.9452643]
[1743942403910,0.06400003,82916.0,82915.0,1.9761643]
[1743942404502,0.06400003,82916.0,82915.0,1.9452643]
[1743942405713,0.14846333,82916.0,82915.0,1.9452643]
[1743942406013,0.06400003,82916.0,82915.0,1.9452643]
[1743942407001,0.06400003,82916.0,82915.0,1.9763643]
[1743942409411,0.06400003,82916.0,82915.0,1.9452643]
[1743942414219,0.14846333,82916.0,82915.0,1.9452643]
[1743942420918,0.06400003,82916.0,82915.0,1.9452643]
[1743942421415,0.14846333,82916.0,82915.0,1.9452643]
[1743942421721,0.25691177,82916.0,82915.0,1.9452643]
[1743942422716,0.25691177,82916.0,82915.0,1.9783643]
[1743942422916,0.17244847,82916.0,82915.0,1.9783643]
[1743942425420,0.06400003,82916.0,82915.0,1.9783643]
[1743942425625,0.03130003,82916.0,82915.0,1.9783643]
[1743942425822,0.03130003,82916.0,82915.0,2.0088643]
[1743942426013,3e-08,82916.0,82915.0,2.0088643]
[1743942427827,3e-08,82916.0,82915.0,1.9783643]
[1743942428030,3e-08,82916.0,82915.0,1.9452643]
[1743942429724,3e-08,82916.0,82915.0,2.0114643]
[1743942437219,3e-08,82916.0,82915.0,2.13206901]
[1743942439030,3e-08,82916.0,82915.0,2.18318901]
[1743942443333,3e-08,82916.0,82915.0,2.15008901]
[1743942443639,3e-08,82916.0,82915.0,1.9452643]
[1743942443942,0.08446333,82916.0,82915.0,1.9452643]
[1743942444135,0.09530003,82916.0,82915.0,1.9452643]
[1743942446533,0.09530003,82916.0,82915.0,2.16140282]
[1743942448028,0.09530003,82916.0,82915.0,2.19420282]
[1743942451147,0.09530003,82916.0,82915.0,1.9780643]
[1743942451440,0.09530003,82916.0,82915.0,1.9452643]
[1743942456440,0.17976333,82916.0,82915.0,1.9452643]
[1743942456637,0.40976333,82916.0,82915.0,1.9452643]
[1743942457037,0.40976333,82916.0,82915.0,1.8608]
[1743942457230,0.40976333,82916.0,82915.0,1.9452643]
[1743942457434,0.40976333,82916.0,82915.0,1.5844643]
[1743942457936,0.41100334,82916.0,82915.0,1.5844643]
[1743942461651,0.40976333,82916.0,82915.0,1.5844643]
[1743942462648,0.41104333,82916.0,82915.0,1.5844643]
[1743942474056,0.41104333,82916.0,82915.0,1.5]
[1743942474257,0.41104333,82916.0,82915.0,1.5844643]
[1743942483859,0.41104333,82916.0,82915.0,1.6162643]
[1743942494487,0.55584063,82916.0,82915.0,1.6162643]
[1743942496186,0.55584063,82916.0,82915.0,1.5844643]
[1743942496886,0.55584063,82916.0,82915.0,1.6174643]
[1743942497386,0.55584063,82916.0,82915.0,1.5844643]
[1743942497684,0.0844663,82913.0,82912.0,0.21621493]
[1743942497891,0.0844704,82909.0,82908.0,0.2881847]
[1743942498189,0.34571041,82909.0,82908.0,0.2881847]
[1743942499087,0.34671041,82909.0,82908.0,0.2881847]
[1743942499885,0.0844745,82905.0,82904.0,0.2881847]
[1743942500086,0.3244745,82905.0,82904.0,0.2881847]
[1743942500687,0.3890745,82905.0,82904.0,0.2881847]
[1743942501288,0.0322,82905.0,82904.0,0.3726602]
[1743942501482,0.084472,82908.0,82907.0,0.1267061]
[1743942501683,0.0322,82910.0,82909.0,0.0844704]
[1743942502188,0.1166694,82910.0,82909.0,0.0844704]
[1743942502585,0.1166694,82910.0,82909.0,0.1177704]
[1743942502786,0.11790941,82910.0,82909.0,0.1177704]
[1743942504297,0.11890941,82910.0,82909.0,0.1177704]
[1743942504599,0.12090941,82910.0,82909.0,0.1177704]
[1743942508703,0.26552806,82910.0,82909.0,0.1177704]
[1743942511794,0.29822806,82910.0,82909.0,0.1510704]
[1743942513306,0.29822806,82910.0,82909.0,0.5118704]
[1743942515408,0.15360941,82910.0,82909.0,0.5118704]
[1743942517400,0.15360941,82910.0,82909.0,0.1510704]
[1743942517601,0.15360941,82910.0,82909.0,0.5118704]
[1743942518312,0.15360941,82910.0,82909.0,0.4785704]
[1743942519510,0.25360941,82910.0,82909.0,0.4785704]
[1743942520312,0.15360941,82910.0,82909.0,0.4785704]
[1743942520508,0.43360941,82910.0,82909.0,0.4452704]
[1743942523512,0.57822806,82910.0,82909.0,0.4452704]
[1743942526012,0.57822806,82910.0,82909.0,0.0844704]
[1743942527514,0.43360941,82910.0,82909.0,0.0844704]
[1743942530011,0.0844745,82905.0,82904.0,0.0308]
[1743942530206,0.22571451,82905.0,82904.0,0.0308]
[1743942530409,0.2244745,82905.0,82904.0,0.0844755]
[1743942530713,0.0844755,82904.0,82903.0,0.4452765]
[1743942531017,0.34644354,82904.0,82903.0,0.4452765]
[1743942531217,0.40994354,82904.0,82903.0,0.4452765]
[1743942533116,0.40994354,82904.0,82903.0,0.4784765]
[1743942536815,0.40994354,82904.0,82903.0,0.4452765]
[1743942539421,0.40994354,82904.0,82903.0,0.0844765]
[1743942545125,0.40994354,82904.0,82903.0,0.1169765]
[1743942551426,0.32546804,82904.0,82903.0,0.1169765]
[1743942551628,0.32546804,82904.0,82903.0,0.1477765]
[1743942552234,0.40994354,82904.0,82903.0,0.1477765]
[1743942556344,0.40994354,82904.0,82903.0,0.1169765]
[1743942558745,0.41118355,82904.0,82903.0,0.1169765]
[1743942577354,0.55600728,82904.0,82903.0,0.4777765]
[1743942583163,0.47153178,82904.0,82903.0,0.4777765]
[1743942583468,0.22153178,82904.0,82903.0,0.5102765]
[1743942583667,0.22029177,82904.0,82903.0,0.5102765]
[1743942583867,0.20832373,82904.0,82903.0,0.5102765]
[1743942584174,0.29279923,82904.0,82903.0,0.5102765]
[1743942584969,0.1479755,82904.0,82903.0,0.5102765]
[1743942586874,0.1479755,82904.0,82903.0,0.4777765]
[1743942592273,0.0635,82904.0,82903.0,0.4777765]
[1743942592572,0.1479755,82904.0,82903.0,0.5090765]
[1743942597079,0.2565456,82904.0,82903.0,0.5090765]
[1743942598376,0.2565456,82904.0,82903.0,0.4777765]
[1743942598878,0.1720701,82904.0,82903.0,0.4777765]
[1743942599468,0.2565456,82904.0,82903.0,0.4777765]
[1743942600379,0.1720701,82904.0,82903.0,0.4777765]
[1743942600585,0.0706389,82909.0,82908.0,0.0844714]
[1743942600779,0.0706389,82909.0,82908.0,0.4452714]
[1743942600989,0.00128,82909.0,82908.0,0.4452714]
[1743942601287,8e-05,82910.0,82909.0,0.0844704]
[1743942601776,0.0845494,82910.0,82909.0,0.1167704]
[1743942602580,0.18578941,82910.0,82909.0,0.1167704]
[1743942602776,0.11628941,82910.0,82909.0,1.6167704]
[1743942602977,0.1160494,82910.0,82909.0,0.1167704]
[1743942603884,0.1483494,82910.0,82909.0,0.1167704]
[1743942604201,0.1503494,82910.0,82909.0,0.1167704]
[1743942607392,0.06588,82910.0,82909.0,0.1167704]
[1743942607690,0.06588,82910.0,82909.0,0.1478704]
[1743942607691,0.03358,82910.0,82909.0,0.1478704]
[1743942607891,0.0335,82910.0,82909.0,0.1478704]
[1743942608096,0.0335,82910.0,82909.0,0.1783704]
[1743942611495,0.003,82910.0,82909.0,0.1783704]
[1743942614195,0.003,82910.0,82909.0,0.8999704]
[1743942623115,0.003,82910.0,82909.0,0.8383704]
[1743942623315,0.0673,82910.0,82909.0,0.8383704]
[1743942624217,0.1826694,82910.0,82909.0,0.8383704]
[1743942624714,0.1826694,82910.0,82909.0,0.8060704]
[1743942628225,0.18390941,82910.0,82909.0,0.8060704]
[1743942630320,0.1826694,82910.0,82909.0,0.8060704]
[1743942633319,0.2826694,82910.0,82909.0,0.8060704]
[1743942633618,0.1826694,82910.0,82909.0,0.8060704]
[1743942634022,0.2926694,82910.0,82909.0,0.3608]
[1743942634510,0.29390941,82910.0,82909.0,0.3608]
[1743942635228,0.29390941,82910.0,82909.0,0.4452704]
[1743942641236,0.29390941,82910.0,82909.0,1.9452704]
[1743942641430,0.2926694,82910.0,82909.0,1.9452704]
[1743942642831,0.2926694,82910.0,82909.0,0.4452704]
[1743942648045,0.29390941,82910.0,82909.0,0.4452704]
[1743942648242,0.0844724,82907.0,82906.0,0.032]
[1743942648450,0.1267189,82901.0,82900.0,0.0422398]
[1743942648649,0.1267189,82901.0,82900.0,0.1267146]
[1743942649641,0.1585189,82901.0,82900.0,0.1267146]
[1743942649841,0.1895189,82901.0,82900.0,0.1599146]
[1743942650344,0.1895189,82901.0,82900.0,0.5217146]
[1743942650851,0.1050393,82901.0,82900.0,0.5217146]
[1743942652851,0.1050393,82901.0,82900.0,0.0342]
[1743942653153,0.4350393,82901.0,82900.0,0.002]
[1743942653352,0.20627931,82901.0,82900.0,0.002]
[1743942653548,0.43627931,82901.0,82900.0,0.002]
[1743942653754,0.29627931,82901.0,82900.0,0.002]
[1743942653953,0.20627931,82901.0,82900.0,0.002]
[1743942655956,0.20627931,82901.0,82900.0,0.0864796]
[1743942656450,0.16404001,82901.0,82900.0,0.0864796]
[1743942656653,0.24851861,82901.0,82900.0,0.0864796]
[1743942657048,0.24851861,82901.0,82900.0,0.1180796]
[1743942657359,0.13304001,82901.0,82900.0,1.6499796]
[1743942658256,0.03304001,82901.0,82900.0,1.6499796]
[1743942658553,0.0318,82901.0,82900.0,1.6499796]
[1743942659161,0.18006953,82902.0,82901.0,0.0844786]
[1743942659356,8e-05,82902.0,82901.0,0.1473786]
[1743942659865,0.0844698,82910.0,82906.0,0.0422365]
[1743942660055,0.1171506,82909.0,82908.0,0.0844714]
[1743942660255,0.20839061,82909.0,82908.0,0.0844714]
[1743942660564,0.20831061,82909.0,82908.0,0.1153714]
[1743942662060,0.20831061,82909.0,82908.0,0.0844714]
[1743942662263,0.24041061,82909.0,82908.0,0.0844714]
[1743942662464,0.24141061,82909.0,82908.0,0.0844714]
[1743942663454,0.24241061,82909.0,82908.0,0.0844714]
[1743942666565,0.12584001,82909.0,82908.0,0.0844714]
[1743942666768,0.12031041,82909.0,82908.0,0.1485714]
[1743942667466,0.08771041,82909.0,82908.0,0.1485714]
[1743942668165,0.11821041,82909.0,82908.0,0.1485714]
[1743942669164,0.20821041,82909.0,82908.0,0.0844714]
[1743942669364,0.24101041,82909.0,82908.0,0.0844714]
[1743942669761,0.0844806,82901.0,82900.0,0.1267137]
[1743942670064,0.3344806,82901.0,82900.0,0.1267137]
[1743942670666,0.3978806,82901.0,82900.0,0.1267137]
[1743942670864,0.39912061,82901.0,82900.0,0.1267137]
[1743942671059,0.39912061,82901.0,82900.0,0.1287137]
[1743942671664,0.39912061,82901.0,82900.0,0.002]
[1743942671865,0.39912061,82901.0,82900.0,0.001]
[1743942672073,0.67312061,82901.0,82900.0,0.001]
[1743942672259,0.61312061,82901.0,82900.0,0.001]
[1743942672570,0.40312061,82901.0,82900.0,0.001]
[1743942672771,0.61312061,82901.0,82900.0,0.001]
[1743942672972,0.0844806,82899.0,82898.0,0.21620847]
[1743942673160,0.4444806,82899.0,82898.0,0.21620847]
[1743942673566,0.4457606,82899.0,82898.0,0.21620847]
[1743942673773,0.0844847,82895.0,82894.0,0.00900745]
[1743942673972,0.0844867,82893.0,82892.0,0.28836568]
[1743942674270,0.3144867,82893.0,82892.0,0.28836568]
[1743942674482,0.7652867,82893.0,82892.0,0.28836568]
[1743942674666,0.8306667,82893.0,82892.0,0.28836568]
[1743942674970,0.7406667,82893.0,82892.0,0.29732447]
[1743942675168,0.7436667,82893.0,82892.0,0.29732447]
[1743942675368,0.8536667,82893.0,82892.0,0.29732447]
[1743942675672,0.8586667,82893.0,82892.0,0.29832447]
[1743942675880,0.7486667,82893.0,82892.0,0.29832447]
[1743942676783,0.7486667,82893.0,82892.0,0.01013977]
[1743942676969,0.0844918,82888.0,82887.0,0.00060323]
[1743942677275,0.34573181,82888.0,82887.0,0.00060323]
[1743942677865,0.41023181,82888.0,82887.0,0.00060323]
[1743942678075,0.084501,82879.0,82878.0,0.0324]
[1743942678271,0.324501,82879.0,82878.0,0.0324]
[1743942678469,0.084504,82876.0,82875.0,0.0845046]
[1743942678671,0.324504,82876.0,82875.0,0.0845046]
[1743942678871,0.324504,82876.0,82875.0,0.1169046]
[1743942679374,0.358784,82876.0,82875.0,0.1169046]
[1743942680780,0.362784,82876.0,82875.0,0.1169046]
[1743942680965,0.37488367,82876.0,82875.0,0.1169046]
[1743942681370,0.25737967,82876.0,82875.0,0.15941583]
[1743942681570,0.01609967,82876.0,82875.0,0.15941583]
[1743942681769,0.004,82876.0,82875.0,0.15941583]
[1743942682771,0.004,82876.0,82875.0,1.65941583]
[1743942683579,0.003,82876.0,82875.0,1.65941583]
[1743942684181,0.002,82876.0,82875.0,1.65941583]
[1743942684568,0.001,82876.0,82875.0,1.65941583]
[1743942684774,8e-05,82877.0,82875.0,1.65941583]
[1743942684775,8e-05,82877.0,82876.0,0.084504]
[1743942685176,8e-05,82877.0,82876.0,0.147704]
[1743942685579,8e-05,82877.0,82876.0,1.647704]
[1743942686178,0.12692558,82884.0,82883.0,0.0844969]
[1743942686377,0.12816559,82884.0,82883.0,0.0844969]
[1743942687081,0.12816559,82884.0,82883.0,0.1486969]
[1743942687282,0.00142099,82884.0,82883.0,0.1486969]
[1743942687583,0.08567688,82884.0,82883.0,0.1486969]
[1743942688172,0.08767688,82884.0,82883.0,0.1486969]
[1743942688372,0.08895688,82884.0,82883.0,0.1486969]
[1743942688782,0.08695688,82884.0,82883.0,0.1486969]
[1743942688973,0.08895688,82884.0,82883.0,0.1486969]
[1743942689383,0.00446098,82884.0,82883.0,0.1486969]
[1743942690081,0.08895688,82884.0,82883.0,0.1486969]
[1743942690380,0.11945688,82884.0,82883.0,0.1486969]
[1743942690678,0.11845688,82884.0,82883.0,0.1486969]
[1743942690883,0.11945688,82884.0,82883.0,0.1486969]
[1743942691483,0.21945688,82884.0,82883.0,0.0325]
[1743942691773,0.0422504,82880.0,82876.0,0.0845034]
[1743942691978,0.084502,82878.0,82877.0,0.115183]
[1743942692175,0.19574201,82878.0,82877.0,0.115183]
[1743942692376,0.084504,82876.0,82875.0,0.00905123]
[1743942692569,0.0845071,82873.0,82872.0,0.36088]
[1743942692776,0.30574711,82873.0,82872.0,0.36088]
[1743942693078,0.30574711,82873.0,82872.0,0.3911]
[1743942693584,0.36824711,82873.0,82872.0,0.3911]
[1743942694485,0.36824711,82873.0,82872.0,0.37081455]
[1743942694675,0.36824711,82873.0,82872.0,0.37181455]
[1743942695777,0.36824711,82873.0,82872.0,0.45632265]
[1743942696484,0.36824711,82873.0,82872.0,0.09552265]
[1743942696678,0.36924711,82873.0,82872.0,0.09452265]
[1743942696982,0.37024711,82873.0,82872.0,0.09408265]
[1743942700877,0.37024711,82873.0,82872.0,0.09352265]
[1743942701989,0.37024711,82873.0,82872.0,0.09408265]
[1743942704584,0.37024711,82873.0,82872.0,0.00957455]
[1743942705180,0.83104711,82873.0,82872.0,0.00957455]
[1743942705385,0.73104711,82873.0,82872.0,0.00957455]
[1743942705580,0.99104711,82873.0,82872.0,0.00957455]
[1743942705788,0.73104711,82873.0,82872.0,0.00957455]
[1743942705983,0.73104711,82873.0,82872.0,0.00901455]
[1743942706187,0.0845091,82871.0,82870.0,0.00018098]
[1743942706391,0.0845214,82859.0,82856.0,0.084524]
[1743942706596,0.3345214,82859.0,82854.0,0.2881847]
[1743942706891,0.3345214,82859.0,82858.0,1.86088]
[1743942707281,0.4445214,82859.0,82858.0,1.86088]
[1743942707480,0.33576141,82859.0,82858.0,0.36088]
[1743942707681,0.43576141,82859.0,82858.0,0.36088]
[1743942707882,0.33576141,82859.0,82858.0,0.36288]
[1743942709390,0.33576141,82859.0,82858.0,0.36588]
[1743942710588,0.33576141,82859.0,82858.0,0.37472549]
[1743942710792,0.33576141,82859.0,82858.0,0.01384549]
[1743942711193,0.39826141,82859.0,82858.0,0.01384549]
[1743942711494,0.0845285,82852.0,82851.0,0.00068349]
[1743942711788,0.7953285,82852.0,82851.0,0.00961594]
[1743942711994,0.69656851,82852.0,82851.0,0.00060349]
[1743942712487,0.79136851,82852.0,82851.0,0.00060349]
[1743942712683,0.79136851,82852.0,82851.0,0.00360349]
[1743942713684,0.79136851,82852.0,82851.0,0.00716349]
[1743942714085,0.79236851,82852.0,82851.0,0.00416349]
[1743942714289,0.79336851,82852.0,82851.0,0.00116349]
[1743942715591,0.86336851,82852.0,82851.0,0.00116349]
[1743942715889,0.86336851,82852.0,82851.0,0.00060349]
[1743942716086,0.86336851,82852.0,82851.0,0.00949837]
[1743942716286,0.86336851,82852.0,82851.0,0.00060349]
[1743942716483,0.86336851,82852.0,82851.0,0.03166349]
[1743942716701,0.91496851,82852.0,82851.0,0.03166349]
[1743942716882,1.05941033,82852.0,82851.0,0.03166349]
[1743942719891,0.91496851,82852.0,82851.0,0.03166349]
[1743942720491,0.91496851,82852.0,82851.0,0.04069345]
[1743942721486,0.91496851,82852.0,82851.0,0.04013345]
[1743942722198,0.91496851,82852.0,82850.0,0.00018098]
[1743942722199,0.0845408,82840.0,82839.0,0.0331]
[1743942722403,0.3345408,82840.0,82839.0,0.03318]
[1743942722897,0.0845428,82838.0,82837.0,0.3608]
[1743942723101,0.0845428,82838.0,82837.0,0.36088]
[1743942723102,0.3445428,82838.0,82837.0,0.36088]
[1743942723396,0.3458628,82838.0,82837.0,0.36088]
[1743942723590,0.4116628,82838.0,82837.0,0.3698873]
[1743942724094,0.42404402,82838.0,82837.0,0.3698873]
[1743942725003,0.47568402,82838.0,82837.0,0.3698873]
[1743942725193,0.47568402,82838.0,82837.0,0.4034873]
[1743942725393,0.47568402,82838.0,82837.0,0.4054873]
[1743942725703,0.47568402,82838.0,82837.0,0.4054073]
[1743942726402,0.47568402,82838.0,82837.0,0.4059673]
[1743942726604,0.27370122,82838.0,82837.0,0.4905111]
[1743942726800,0.00018098,82846.0,82845.0,0.0845357]
[1743942726801,0.08471708,82846.0,82845.0,0.0845357]
[1743942727099,0.02142099,82846.0,82845.0,0.0845357]
[1743942727495,0.02142099,82846.0,82845.0,0.1480357]
[1743942727802,0.02142099,82846.0,82845.0,2.0088357]
[1743942728000,0.02018098,82846.0,82845.0,2.0088357]
[1743942728401,0.02018098,82846.0,82845.0,2.0098357]
[1743942728899,0.00018098,82846.0,82845.0,2.0098357]
[1743942730795,0.08471558,82846.0,82845.0,2.0098357]
[1743942731702,0.08471558,82846.0,82845.0,2.0103957]
[1743942733004,0.34471558,82846.0,82845.0,2.0103957]
[1743942733207,0.08471558,82846.0,82845.0,2.0103957]
[1743942734107,0.33471558,82846.0,82845.0,2.0103957]
[1743942734298,0.08471558,82846.0,82845.0,2.0103957]
[1743942735410,0.62471558,82846.0,82845.0,0.42586]
[1743942735711,0.61471558,82846.0,82845.0,0.03216]
[1743942735905,0.61595559,82846.0,82845.0,0.03216]
[1743942736210,0.67995559,82846.0,82845.0,0.03216]
[1743942736507,0.67995559,82846.0,82845.0,0.0316]
[1743942736712,0.42995559,82846.0,82845.0,0.0316]
[1743942737209,0.42995559,82846.0,82845.0,0.03216]
[1743942737703,0.42995559,82846.0,82845.0,0.1166957]
[1743942741410,0.42995559,82846.0,82845.0,0.0855357]
[1743942741605,0.42995559,82846.0,82845.0,0.0860957]
[1743942741606,0.46115559,82846.0,82845.0,0.0860957]
[1743942745009,0.46115559,82846.0,82845.0,0.1188957]
[1743942746219,0.46115559,82846.0,82845.0,0.1183357]
[1743942746815,0.46115559,82846.0,82845.0,0.1188957]
[1743942747214,0.34542099,82846.0,82845.0,0.1188957]
[1743942747408,0.17998953,82855.0,82846.0,0.0845346]
[1743942747716,0.17998953,82855.0,82854.0,0.0845265]
[1743942747717,0.45998953,82855.0,82854.0,0.0845265]
[1743942747914,0.17998953,82855.0,82854.0,1.5845265]
[1743942748113,0.42998953,82855.0,82854.0,1.6463265]
[1743942748315,0.0845253,82856.0,82855.0,0.0845255]
[1743942748513,0.1176253,82856.0,82855.0,0.0845255]
[1743942748819,0.3876253,82856.0,82855.0,1.6463255]
[1743942749117,0.1176253,82856.0,82855.0,1.6463255]
[1743942749417,0.3576253,82856.0,82855.0,2.0071255]
[1743942749612,0.3596253,82856.0,82855.0,2.0071255]
[1743942750316,0.3634653,82856.0,82855.0,2.0077655]
[1743942750815,0.1234653,82856.0,82855.0,2.0077655]
[1743942751021,0.1226253,82856.0,82855.0,2.0077655]
[1743942751326,0.1226253,82856.0,82855.0,2.0083255]
[1743942751512,0.3926253,82856.0,82855.0,2.0083255]
[1743942751713,0.1553653,82856.0,82855.0,2.0083255]
[1743942752011,0.4145253,82856.0,82855.0,2.0083255]
[1743942752315,0.1553653,82856.0,82855.0,2.0083255]
[1743942752511,0.1545253,82856.0,82855.0,2.0083255]
[1743942752710,0.1545253,82856.0,82855.0,0.5083255]
[1743942752911,0.4254453,82856.0,82855.0,0.5083255]
[1743942753522,0.4245253,82856.0,82855.0,0.5083255]
[1743942753724,0.3945253,82856.0,82855.0,0.5083255]
[1743942753925,0.1545253,82856.0,82855.0,0.5083255]
[1743942754527,0.1545253,82856.0,82855.0,0.1475255]
[1743942754712,0.1545253,82856.0,82855.0,0.5083255]
[1743942755519,0.4145253,82856.0,82855.0,0.5083255]
[1743942755725,0.3845253,82856.0,82855.0,0.5083255]